Workbook

Sheet GREEKS
B4: =IF(C53=1,"Maximum Stock Price Used",IF(C53=2,"Maximum FX Level Used","Maximum Futures Price Used")) -> Maximum Stock Price Used | C4: =D4 -> 100 | D4: 100
B5: Option Strike Price | C5: =D5/2 -> 50 | D5: 100
B6: Time to Maturity (Days) | C6: =D6 -> 365 | D6: 365
B7: =IF(OR(C53=1,C53=3),"Interest Rate","Domestic Interest Rate") -> Interest Rate | C7: =D7/1000 -> 0.025 | D7: 25
B8: Volatility (Standard Deviation) | C8: =D8/1000 -> 0.4 | D8: 400
B9: =IF(C53=1,"Dividend Yield",IF(C53=2,"Foreign Interest Rate","Not needed for Futures")) -> Dividend Yield | C9: =D9/1000 -> 0.01 | D9: 10
B53: Stock Option | C53: 1
B54: Currency Option
B55: Futures Option
B56: Call Option (European) | C56: 1
B57: Put Option (European)
B58: Divisor | C58: 100
B59: Haug's General Formala "b" | C59: =IF(C53=1,C7-C9,IF(C53=2,C7-C9,0)) -> 0.015 | D59: <-------- | E59: See section 1.1.6 (pp.7-9) in Haug, Espen Gaarder, 2007, The Complete Guide to Option Pricing Formulas, Second Edition, McGraw-Hill: New York, N.Y.
B60: TAU (YEARS TO MATURITY) | C60: =IF(C6=0,0.0000000001,C6/365) -> 1
B62: =IF(C53=1,"Stock Prices",IF(C53=2,"FX Levels","Futures Prices")) -> Stock Prices | C62: d1 | D62: Option Value | E62: Delta | F62: Gamma | G62: Theta | H62: Vega | I62: Rho | J62: INTRINSIC
B64: =B63+$C$4/$C$58 -> 1 | C64: =(LN(B64/$C$5)+($C$59+0.5*$C$8^2)*$C$60)/($C$8*SQRT($C$60)) -> -9.542557514 | D64: =IF($C$56=1,B64*EXP(($C$59-$C$7)*$C$60)*NORMSDIST(C64)-$C$5*EXP(-$C$7*$C$60)*NORMSDIST(C64-$C$8*SQRT($C$60)),$C$5*EXP(-$C$7*$C$60)*NORMSDIST(-C64+$C$8*SQRT($C$60))-B64*EXP(($C$59-$C$7)*$C$60)*NORMSDIST(-C64)) -> 2.720721752e-23 | E64: =IF($C$56=1,EXP(($C$59-$C$7)*$C$60)*NORMSDIST(C64),-EXP(($C$59-$C$7)*$C$60)*NORMSDIST(-C64)) -> 6.898297467e-22 | F64: =(1/SQRT(2*3.14159265358979))*EXP(-0.5*C64^2)*EXP(($C$59-$C$7)*$C$60)/(B64*$C$8*SQRT($C$60)) -> 1.663380718e-20 | G64: =IF($C$56=1,-(1/SQRT(2*3.14159265358979))*EXP(-0.5*C64^2)*EXP(($C$59-$C$7)*$C$60)*$C$8*B64/(2*SQRT($C$60))-($C$59-$C$7)*B64*EXP(($C$59-$C$7)*$C$60)*NORMSDIST(C64)-$C$7*$C$5*EXP(-$C$7*$C$60)*NORMSDIST(C64-$C$8*SQRT($C$60)),-(1/SQRT(2*3.14159265358979))*EXP(-0.5*C64^2)*EXP(($C$59-$C$7)*$C$60)*$C$8*B64/(2*SQRT($C$60))+($C$59-$C$7)*B64*EXP(($C$59-$C$7)*$C$60)*NORMSDIST(-C64)+$C$7*$C$5*EXP(-$C$7*$C$60)*NORMSDIST(-C64+$C$8*SQRT($C$60))) -> -1.34037184e-21 | H64: =(1/SQRT(2*3.14159265358979))*EXP(-0.5*C64^2)*B64*EXP(($C$59-$C$7)*$C$60)*SQRT($C$6) -> 1.27115376e-19 | I64: =AND($C$56=1,OR($C$53=1,$C$53=2))*($C$60*$C$5*EXP(-$C$7*$C$60)*NORMSDIST(C64-$C$8*SQRT($C$60)))+AND($C$56=2,OR($C$53=1,$C$53=2))*(-$C$60*$C$5*EXP(-$C$7*$C$60)*NORMSDIST(-C64+$C$8*SQRT($C$60)))+($C$53=3)*(-$C$60*D64) -> 6.626225292e-22 | J64: =IF($C$56=1,MAX(B64-$C$5,0),MAX($C$5-B64,0)) -> 0
B65: 2 | C65: -7.809689562 | D65: 2.687131346e-16 | E65: 2.837929048e-15 | F65: 2.814461063e-14 | G65: -9.084695444e-15 | H65: 8.603232497e-13 | I65: 5.407144961e-15 | J65: =IF($C$56=1,MAX(B65-$C$5,0),MAX($C$5-B65,0)) -> 0
B66: 3 | C66: -6.796026792 | D66: 8.555927855e-13 | E66: 5.323685427e-12 | F66: 3.077710126e-11 | G66: -2.237768893e-11 | H66: 2.116784498e-09 | I66: 1.51154635e-11 | J66: 0
B67: 4 | C67: -6.076821611 | D67: 1.433149224e-10 | E67: 6.068411703e-10 | F67: 2.364208349e-09 | G67: -3.059014284e-09 | H67: 2.890760774e-07 | I67: 2.284049759e-09 | J67: 0
B68: 5 | C68: -5.518962732 | D68: 5.408529915e-09 | E68: 1.688067126e-08 | F68: 4.802421207e-08 | G68: -9.717926124e-08 | H68: 9.175012834e-06 | I68: 7.899482636e-08 | J68: 0
B69: 6 | C69: -5.063158841 | D69: 8.432044241e-08 | E69: 2.041314418e-07 | F69: 4.463350237e-07 | G69: -1.301708687e-06 | H69: 0.0001227919486 | I69: 1.140468209e-06 | J69: 0
B70: 7 | C70: -4.677782141 | D70: 7.378648777e-07 | E70: 1.435544578e-06 | F70: 2.499597524e-06 | G70: -9.930707853e-06 | H70: 0.0009359929755 | I70: 9.310947166e-06 | J70: 0
B71: 8 | C71: -4.343953659 | D71: 4.316420017e-06 | E71: 6.927430533e-06 | F71: 9.859687926e-06 | G71: -5.120498334e-05 | H71: 0.004822248277 | I71: 5.110302425e-05 | J71: 0
B72: 9 | C72: -4.04949607 | D72: 1.881072899e-05 | E72: 2.540865859e-05 | F72: 3.015735885e-05 | G72: -0.000198379586 | H72: 0.01866743923 | I72: 0.0002098671984 | J72: 0
B73: 10 | C73: -3.786094781 | D73: 6.558318262e-05 | E73: 7.575530845e-05 | F73: 7.617404729e-05 | G73: -0.000619116095 | H73: 0.0582121252 | I73: 0.0006919699019 | J73: 0
B74: 11 | C74: -3.547819332 | D74: 0.0001921559666 | E74: 0.0001922847894 | F74: 0.0001659118261 | G74: -0.001632949568 | H74: 0.1534154638 | I74: 0.001922976717 | J74: 0
B75: 12 | C75: -3.330290889 | D75: 0.0004901084853 | E75: 0.0004294603495 | F75: 0.0003213520991 | G75: -0.003767026332 | H75: 0.3536307782 | I75: 0.004663415709 | J75: 0
B76: 13 | C76: -3.13018412 | D76: 0.001116865542 | E76: 0.00086479254 | F76: 0.0005661658672 | G76: -0.007795275431 | H76: 0.7312010585 | I76: 0.01012543748 | J76: 0
B77: 14 | C77: -2.94491419 | D77: 0.002319133204 | E77: 0.001599149495 | F77: 0.000922922841 | G77: -0.01474927321 | H77: 1.382381424 | I77: 0.02006895973 | J77: 0
B78: 15 | C78: -2.772432011 | D78: 0.004455241591 | E78: 0.002754276111 | F78: 0.001410391957 | G78: -0.02589538631 | H78: 2.425095045 | I78: 0.03685890008 | J78: 0
B79: 16 | C79: -2.611085708 | D79: 0.008013734047 | E79: 0.004467860791 | F79: 0.002041397185 | G79: -0.0426797576 | H79: 3.993685859 | I79: 0.0634720386 | J79: 0
B80: 17 | C80: -2.459524153 | D80: 0.01362608014 | E80: 0.006886852778 | F80: 0.002821488557 | G80: -0.0666483109 | H80: 6.231355946 | I80: 0.1034504171 | J80: 0
B81: 18 | C81: -2.316628119 | D81: 0.02207218833 | E81: 0.01015989054 | F81: 0.003748488902 | G81: -0.09935219807 | H81: 9.281275477 | I81: 0.1608058413 | J81: 0
B82: 19 | C82: -2.181460066 | D82: 0.03427825727 | E82: 0.01442968183 | F82: 0.00481282625 | G82: -0.142249925 | H82: 13.27742353 | I82: 0.2398856975 | J82: 0
B83: 20 | C83: -2.05322683 | D83: 0.05130728304 | E83: 0.01982603676 | F83: 0.005998473361 | G83: -0.1966162765 | H83: 18.33610762 | I83: 0.3452134522 | J83: 0
B84: 21 | C84: -1.931251419 | D84: 0.07434314402 | E84: 0.02646005601 | F84: 0.007284283032 | G84: -0.2634658444 | H84: 24.54888803 | I84: 0.4813180321 | J84: 0
B85: 22 | C85: -1.81495138 | D85: 0.1046695817 | E85: 0.03441976637 | F85: 0.008645515681 | G85: -0.3434961505 | H85: 31.97736602 | I85: 0.6525652785 | J85: 0
B86: 23 | C86: -1.703821974 | D86: 0.1436455908 | E86: 0.043767307 | F86: 0.01005538792 | G86: -0.4370525981 | H86: 40.65003514 | I86: 0.8630024701 | J86: 0
B87: 24 | C87: -1.597422938 | D87: 0.1926787562 | E87: 0.05453761923 | F87: 0.01148651371 | G87: -0.5441151258 | H87: 50.56117316 | I87: 1.116224105 | J87: 0
B88: 25 | C88: -1.495367951 | D88: 0.253197971 | E88: 0.06673848699 | F88: 0.01291215348 | G88: -0.6643046571 | H88: 61.67158645 | I88: 1.415264204 | J88: 0
B89: 26 | C89: -1.397316169 | D89: 0.3266267819 | E89: 0.08035170981 | F89: 0.01430722568 | G89: -0.7969062623 | H89: 73.91090965 | I89: 1.762517673 | J89: 0
B90: 27 | C90: -1.302965349 | D90: 0.4143583701 | E90: 0.09533516164 | F90: 0.01564906643 | G90: -0.9409053351 | H90: 87.18110833 | I90: 2.159690994 | J90: 0
B91: 28 | C91: -1.212046238 | D91: 0.517732931 | E91: 0.111625486 | F91: 0.01691794556 | G91: -1.095032926 | H91: 101.3608186 | I91: 2.607780677 | J91: 0
B92: 29 | C92: -1.124317939 | D92: 0.6380179684 | E92: 0.1291411949 | F92: 0.01809736295 | G92: -1.25781655 | H92: 116.3101768 | I92: 3.107076683 | J92: 0
B93: 30 | C93: -1.039564059 | D93: 0.776391803 | E93: 0.1477859673 | F93: 0.01917415693 | G93: -1.427633189 | H93: 131.8758314 | I93: 3.657187216 | J93: 0
B94: 31 | C94: -0.9575895024 | D94: 0.9339304072 | E94: 0.167451977 | F94: 0.02013846052 | G94: -1.602761754 | H94: 147.8958812 | I94: 4.25708088 | J94: 0
B95: 32 | C95: -0.8782177566 | D95: 1.111597525 | E95: 0.1880231151 | F95: 0.02098354084 | G95: -1.781432823 | H95: 164.2045378 | I95: 4.905142158 | J95: 0
B96: =B95+$C$4/$C$58 -> 33 | C96: =(LN(B96/$C$5)+($C$59+0.5*$C$8^2)*$C$60)/($C$8*SQRT($C$60)) -> -0.8012886099 | D96: =IF($C$56=1,B96*EXP(($C$59-$C$7)*$C$60)*NORMSDIST(C96)-$C$5*EXP(-$C$7*$C$60)*NORMSDIST(C96-$C$8*SQRT($C$60)),$C$5*EXP(-$C$7*$C$60)*NORMSDIST(-C96+$C$8*SQRT($C$60))-B96*EXP(($C$59-$C$7)*$C$60)*NORMSDIST(-C96)) -> 1.310237916 | E96: =IF($C$56=1,EXP(($C$59-$C$7)*$C$60)*NORMSDIST(C96),-EXP(($C$59-$C$7)*$C$60)*NORMSDIST(-C96)) -> 0.2093780077 | F96: =(1/SQRT(2*3.14159265358979))*EXP(-0.5*C96^2)*EXP(($C$59-$C$7)*$C$60)/(B96*$C$8*SQRT($C$60)) -> 0.02170555455 | G96: =IF($C$56=1,-(1/SQRT(2*3.14159265358979))*EXP(-0.5*C96^2)*EXP(($C$59-$C$7)*$C$60)*$C$8*B96/(2*SQRT($C$60))-($C$59-$C$7)*B96*EXP(($C$59-$C$7)*$C$60)*NORMSDIST(C96)-$C$7*$C$5*EXP(-$C$7*$C$60)*NORMSDIST(C96-$C$8*SQRT($C$60)),-(1/SQRT(2*3.14159265358979))*EXP(-0.5*C96^2)*EXP(($C$59-$C$7)*$C$60)*$C$8*B96/(2*SQRT($C$60))+($C$59-$C$7)*B96*EXP(($C$59-$C$7)*$C$60)*NORMSDIST(-C96)+$C$7*$C$5*EXP(-$C$7*$C$60)*NORMSDIST(-C96+$C$8*SQRT($C$60))) -> -1.961874079 | H96: =(1/SQRT(2*3.14159265358979))*EXP(-0.5*C96^2)*B96*EXP(($C$59-$C$7)*$C$60)*SQRT($C$6) -> 180.6363667 | I96: =AND($C$56=1,OR($C$53=1,$C$53=2))*($C$60*$C$5*EXP(-$C$7*$C$60)*NORMSDIST(C96-$C$8*SQRT($C$60)))+AND($C$56=2,OR($C$53=1,$C$53=2))*(-$C$60*$C$5*EXP(-$C$7*$C$60)*NORMSDIST(-C96+$C$8*SQRT($C$60)))+($C$53=3)*(-$C$60*D96) -> 5.599236337 | J96: 0
B97: 34 | C97: -0.726656202 | D97: 1.530573494 | E97: 0.2313927591 | F97: 0.02230324838 | G97: -2.14235038 | H97: 197.0300096 | I97: 6.336780316 | J97: 0
B98: 35 | C98: -0.6541873598 | D98: 1.773202035 | E98: 0.2539433787 | F98: 0.02277762889 | G98: -2.321197854 | H98: 213.2313346 | I98: 7.114816219 | J98: 0
B99: 36 | C99: -0.5837601674 | D99: 2.038598166 | E99: 0.27690787 | F99: 0.02313162139 | G99: -2.496851801 | H99: 229.0959968 | I99: 7.930085154 | J99: 0
B100: 37 | C100: -0.515262732 | D100: 2.327116257 | E100: 0.3001679805 | F100: 0.023369733 | G100: -2.667868481 | H100: 244.4914196 | I100: 8.779099022 | J100: 0
B101: 38 | C101: -0.4485921143 | D101: 2.6389949 | E101: 0.3236106209 | F101: 0.02349773129 | G101: -2.832941099 | H101: 259.2982285 | I101: 9.658208694 | J101: 0
B102: 39 | C102: -0.3836533982 | D102: 2.974362657 | E102: 0.3471289743 | F102: 0.02352234608 | G102: -2.990910455 | H102: 273.4111824 | I102: 10.56366734 | J102: 0
B103: 40 | C103: -0.3203588783 | D103: 3.333244761 | E103: 0.370623321 | F103: 0.02345099954 | G103: -3.140770814 | H103: 286.7396589 | I103: 11.49168808 | J103: 0
B104: 41 | C104: -0.2586273468 | D104: 3.715570523 | E104: 0.3940016086 | F104: 0.02329156688 | G104: -3.281671641 | H104: 299.207753 | I104: 12.43849543 | J104: 0
B105: 42 | C105: -0.1983834679 | D105: 4.121181188 | E105: 0.4171797989 | F105: 0.02305216887 | G105: -3.412915815 | H105: 310.7540495 | I105: 13.40037036 | J105: 0
B106: 43 | C106: -0.1395572243 | D106: 4.549838041 | E106: 0.4400820221 | F106: 0.02274099522 | G106: -3.533954966 | H106: 321.3311302 | I106: 14.37368891 | J106: 0
B107: 44 | C107: -0.08208342877 | D107: 5.001230585 | E107: 0.4626405703 | F107: 0.02236615769 | G107: -3.644382515 | H107: 330.9048702 | I107: 15.35495451 | J107: 0
B108: 45 | C108: -0.02590128914 | D108: 5.474984642 | E108: 0.4847957575 | F108: 0.02193557064 | G108: -3.743924965 | H108: 339.4535759 | I108: 16.34082445 | J108: 0
B109: 46 | C109: 0.02904597765 | D109: 5.97067026 | E109: 0.5064956733 | F109: 0.02145685655 | G109: -3.832431934 | H109: 346.9670108 | I109: 17.32813071 | J109: 0
B110: 47 | C110: 0.0828114907 | D110: 6.487809331 | E110: 0.5276958524 | F110: 0.02093727377 | G110: -3.909865363 | H110: 353.445349 | I110: 18.31389573 | J110: 0
B111: 48 | C111: 0.1354450137 | D111: 7.025882842 | E111: 0.5483588835 | F111: 0.0203836639 | G111: -3.976288255 | H111: 358.8980908 | I111: 19.29534357 | J111: 0
B112: 49 | C112: 0.1869932317 | D112: 7.584337715 | E112: 0.5684539728 | F112: 0.0198024159 | G112: -4.031853272 | H112: 363.3429693 | I112: 20.26990695 | J112: 0
B113: 50 | C113: 0.2375 | D113: 8.162593197 | E113: 0.5879564795 | F113: 0.01919944452 | G113: -4.076791433 | H113: 366.8048725 | I113: 21.23523078 | J113: 0
B114: 51 | C114: 0.2870065682 | D114: 8.760046767 | E114: 0.6068474364 | F114: 0.01858018072 | G114: -4.111401123 | H114: 369.3147979 | I114: 22.18917249 | J114: 1
B115: 52 | C115: 0.3355517829 | D115: 9.376079574 | E115: 0.6251130646 | F115: 0.0179495718 | G115: -4.136037573 | H115: 370.9088565 | I115: 23.12979978 | J115: 2
B116: 53 | C116: 0.3831722703 | D116: 10.01006138 | E116: 0.642744294 | F116: 0.01731208945 | G116: -4.151102921 | H116: 371.6273344 | I116: 24.0553862 | J116: 3
B117: 54 | C117: 0.4299026028 | D117: 10.66135504 | E117: 0.659736294 | F117: 0.01667174395 | G117: -4.15703695 | H117: 371.5138208 | I117: 24.96440483 | J117: 4
B118: 55 | C118: 0.4757754495 | D118: 11.32932051 | E118: 0.6760880214 | F118: 0.01603210306 | G118: -4.154308545 | H118: 370.6144076 | I118: 25.85552067 | J118: 5
B119: 56 | C119: 0.5208217133 | D119: 12.0133184 | E119: 0.6918017886 | F119: 0.01539631444 | G119: -4.143407908 | H119: 368.976961 | I119: 26.72758176 | J119: 6
B120: 57 | C120: 0.565070656 | D120: 12.71271316 | E120: 0.7068828559 | F120: 0.01476713032 | G120: -4.124839526 | H120: 366.650467 | I120: 27.57960963 | J120: 7
B121: 58 | C121: 0.6085500128 | D121: 13.4268758 | E121: 0.7213390489 | F121: 0.0141469338 | G121: -4.099115902 | H121: 363.6844496 | I121: 28.41078904 | J121: 8
B122: 59 | C122: 0.6512860962 | D122: 14.15518629 | E122: 0.7351804031 | F122: 0.01353776577 | G122: -4.066752011 | H122: 360.1284589 | I122: 29.2204575 | J122: 9
B123: 60 | C123: 0.693303892 | D123: 14.89703561 | E123: 0.7484188351 | F123: 0.01294135208 | G123: -4.028260461 | H123: 356.0316255 | I123: 30.0080945 | J123: 10
B124: 61 | C124: 0.7346271469 | D124: 15.65182747 | E124: 0.7610678409 | F124: 0.01235913037 | G124: -3.984147316 | H124: 351.4422793 | I124: 30.77331082 | J124: 11
B125: 62 | C125: 0.775278449 | D125: 16.41897974 | E125: 0.773142221 | F125: 0.01179227618 | G125: -3.934908542 | H125: 346.4076261 | I125: 31.51583796 | J125: 12
B126: 63 | C126: 0.8152793024 | D126: 17.19792565 | E126: 0.784657831 | F126: 0.01124172813 | G126: -3.881027025 | H126: 340.9734788 | I126: 32.23551771 | J126: 13
B127: 64 | C127: 0.8546501948 | D127: 17.9881147 | E127: 0.7956313566 | F127: 0.01070821192 | G127: -3.822970118 | H127: 335.1840383 | I127: 32.93229212 | J127: 14
B128: =B127+$C$4/$C$58 -> 65 | C128: =(LN(B128/$C$5)+($C$59+0.5*$C$8^2)*$C$60)/($C$8*SQRT($C$60)) -> 0.8934106612 | D128: =IF($C$56=1,B128*EXP(($C$59-$C$7)*$C$60)*NORMSDIST(C128)-$C$5*EXP(-$C$7*$C$60)*NORMSDIST(C128-$C$8*SQRT($C$60)),$C$5*EXP(-$C$7*$C$60)*NORMSDIST(-C128+$C$8*SQRT($C$60))-B128*EXP(($C$59-$C$7)*$C$60)*NORMSDIST(-C128)) -> 18.78901343 | E128: =IF($C$56=1,EXP(($C$59-$C$7)*$C$60)*NORMSDIST(C128),-EXP(($C$59-$C$7)*$C$60)*NORMSDIST(-C128)) -> 0.8060801125 | F128: =(1/SQRT(2*3.14159265358979))*EXP(-0.5*C128^2)*EXP(($C$59-$C$7)*$C$60)/(B128*$C$8*SQRT($C$60)) -> 0.010192263 | G128: =IF($C$56=1,-(1/SQRT(2*3.14159265358979))*EXP(-0.5*C128^2)*EXP(($C$59-$C$7)*$C$60)*$C$8*B128/(2*SQRT($C$60))-($C$59-$C$7)*B128*EXP(($C$59-$C$7)*$C$60)*NORMSDIST(C128)-$C$7*$C$5*EXP(-$C$7*$C$60)*NORMSDIST(C128-$C$8*SQRT($C$60)),-(1/SQRT(2*3.14159265358979))*EXP(-0.5*C128^2)*EXP(($C$59-$C$7)*$C$60)*$C$8*B128/(2*SQRT($C$60))+($C$59-$C$7)*B128*EXP(($C$59-$C$7)*$C$60)*NORMSDIST(-C128)+$C$7*$C$5*EXP(-$C$7*$C$60)*NORMSDIST(-C128+$C$8*SQRT($C$60))) -> -3.761187668 | H128: =(1/SQRT(2*3.14159265358979))*EXP(-0.5*C128^2)*B128*EXP(($C$59-$C$7)*$C$60)*SQRT($C$6) -> 329.0817199 | I128: =AND($C$56=1,OR($C$53=1,$C$53=2))*($C$60*$C$5*EXP(-$C$7*$C$60)*NORMSDIST(C128-$C$8*SQRT($C$60)))+AND($C$56=2,OR($C$53=1,$C$53=2))*(-$C$60*$C$5*EXP(-$C$7*$C$60)*NORMSDIST(-C128+$C$8*SQRT($C$60)))+($C$53=3)*(-$C$60*D128) -> 33.60619388 | J128: 15
B129: 66 | C129: 0.9315793415 | D129: 19.60010592 | E129: 0.8160218622 | F129: 0.009694247815 | G129: -3.696110474 | H129: 322.7070194 | I129: 34.25733699 | J129: =IF($C$56=1,MAX(B129-$C$5,0),MAX($C$5-B129,0)) -> 16
B130: 67 | C130: 0.9691740349 | D130: 20.42089417 | E130: 0.8254746599 | F130: 0.009214383649 | G130: -3.628149135 | H130: 316.098416 | I130: 34.88590804 | J130: 17
B131: 68 | C131: 1.006211749 | D131: 21.25089832 | E131: 0.8344567099 | F131: 0.008752756945 | G131: -3.557693235 | H131: 309.2923068 | I131: 35.49215795 | J131: 18
B132: 69 | C132: 1.042708748 | D132: 22.08965675 | E132: 0.8429862448 | F132: 0.008309340193 | G132: -3.485110837 | H132: 302.3229696 | I132: 36.07639414 | J132: 19
B133: 70 | C133: 1.078680592 | D133: 22.93672603 | E133: 0.8510814192 | F133: 0.007884007387 | G133: -3.410748235 | H133: 295.2225493 | I133: 36.63897332 | J133: 20
B134: 71 | C134: 1.114142179 | D134: 23.7916808 | E134: 0.8587602183 | F134: 0.007476548112 | G134: -3.334929935 | H134: 288.0210659 | I134: 37.1802947 | J134: 21
B135: 72 | C135: 1.149107784 | D135: 24.65411359 | E135: 0.8660403799 | F135: 0.007086680307 | G135: -3.257958828 | H135: 280.7464399 | I135: 37.70079377 | J135: 22
B136: 73 | C136: 1.183591089 | D136: 25.52363449 | E136: 0.8729393292 | F136: 0.0067140618 | G136: -3.18011653 | H136: 273.4245325 | I136: 38.20093654 | J136: 23
B137: 74 | C137: 1.217605219 | D137: 26.39987087 | E137: 0.8794741231 | F137: 0.006358300656 | G137: -3.101663857 | H137: 266.0791981 | I137: 38.68121424 | J137: 24
B138: 75 | C138: 1.25116277 | D138: 27.28246691 | E138: 0.8856614058 | F138: 0.006018964444 | G138: -3.022841409 | H138: 258.732347 | I138: 39.14213853 | J138: 25
B139: 76 | C139: 1.284275837 | D139: 28.17108324 | E139: 0.8915173723 | F139: 0.005695588481 | G139: -2.943870249 | H139: 251.4040161 | I139: 39.58423705 | J139: 26
B140: 77 | C140: 1.316956041 | D140: 29.06539646 | E140: 0.8970577399 | F140: 0.005387683142 | G140: -2.864952646 | H140: 244.1124448 | I140: 40.00804951 | J140: 27
B141: 78 | C141: 1.349214553 | D141: 29.9650986 | E141: 0.9022977263 | F141: 0.00509474031 | G141: -2.786272878 | H141: 236.8741565 | I141: 40.41412405 | J141: 28
B142: 79 | C142: 1.381062118 | D142: 30.86989669 | E142: 0.9072520344 | F142: 0.004816239028 | G142: -2.707998065 | H142: 229.7040428 | I142: 40.80301403 | J142: 29
B143: 80 | C143: 1.412509073 | D143: 31.77951218 | E143: 0.9119348419 | F143: 0.004551650444 | G143: -2.630279033 | H143: 222.6154487 | I143: 41.17527518 | J143: 30
B144: 81 | C144: 1.443565373 | D144: 32.69368043 | E144: 0.9163597954 | F144: 0.004300442093 | G144: -2.553251186 | H144: 215.62026 | I144: 41.531463 | J144: 31
B145: 82 | C145: 1.474240605 | D145: 33.61215019 | E145: 0.9205400087 | F145: 0.004062081595 | G145: -2.477035387 | H145: 208.7289897 | I145: 41.87213052 | J145: 32
B146: 83 | C146: 1.504544006 | D146: 34.53468307 | E146: 0.9244880648 | F146: 0.003836039818 | G146: -2.401738828 | H146: 201.9508636 | I146: 42.19782631 | J146: 33
B147: 84 | C147: 1.534484484 | D147: 35.46105296 | E147: 0.9282160201 | F147: 0.003621793567 | G147: -2.327455894 | H147: 195.2939047 | I147: 42.50909273 | J147: 34
B148: 85 | C148: 1.564070628 | D148: 36.39104559 | E148: 0.931735412 | F148: 0.003418827845 | G148: -2.254269005 | H148: 188.7650152 | I148: 42.80646442 | J148: 35
B149: 86 | C149: 1.593310727 | D149: 37.32445795 | E149: 0.9350572675 | F149: 0.003226637731 | G149: -2.182249439 | H149: 182.3700571 | I149: 43.09046706 | J149: 36
B150: 87 | C150: 1.622212783 | D150: 38.2610978 | E150: 0.9381921147 | F150: 0.003044729924 | G150: -2.111458128 | H150: 176.1139283 | I150: 43.36161618 | J150: 37
B151: 88 | C151: 1.650784523 | D151: 39.20078319 | E151: 0.9411499945 | F151: 0.002872623987 | G151: -2.041946425 | H151: 170.0006377 | I151: 43.62041632 | J151: 38
B152: 89 | C152: 1.679033411 | D152: 40.14334199 | E152: 0.9439404743 | F152: 0.002709853327 | G152: -1.97375684 | H152: 164.0333755 | I152: 43.86736022 | J152: 39
B153: 90 | C153: 1.706966662 | D153: 41.08861138 | E153: 0.9465726621 | F153: 0.002555965949 | G153: -1.906923744 | H153: 158.2145813 | I153: 44.10292821 | J153: 40
B154: 91 | C154: 1.734591253 | D154: 42.03643744 | E154: 0.9490552215 | F154: 0.002410524995 | G154: -1.84147404 | H154: 152.5460081 | I154: 44.32758771 | J154: 41
B155: 92 | C155: 1.761913929 | D155: 42.9866747 | E155: 0.9513963869 | F155: 0.002273109127 | G155: -1.777427799 | H155: 147.0287835 | I155: 44.5417929 | J155: 42
B156: 93 | C156: 1.788941219 | D156: 43.9391857 | E156: 0.9536039794 | F156: 0.00214331274 | G156: -1.71479886 | H156: 141.6634669 | I156: 44.74598439 | J156: 43
B157: 94 | C157: 1.815679442 | D157: 44.89384061 | E157: 0.9556854221 | F157: 0.002020746055 | G157: -1.653595401 | H157: 136.4501038 | I157: 44.94058907 | J157: 44
B158: 95 | C158: 1.842134715 | D158: 45.85051684 | E158: 0.9576477566 | F158: 0.001905035095 | G158: -1.593820471 | H158: 131.3882763 | I158: 45.12602003 | J158: 45
B159: 96 | C159: 1.868312965 | D159: 46.80909865 | E159: 0.959497658 | F159: 0.001795821574 | G159: -1.535472491 | H159: 126.477151 | I159: 45.30267651 | J159: 46
B160: 97 | C160: =(LN(B160/$C$5)+($C$59+0.5*$C$8^2)*$C$60)/($C$8*SQRT($C$60)) -> 1.894219933 | D160: =IF($C$56=1,B160*EXP(($C$59-$C$7)*$C$60)*NORMSDIST(C160)-$C$5*EXP(-$C$7*$C$60)*NORMSDIST(C160-$C$8*SQRT($C$60)),$C$5*EXP(-$C$7*$C$60)*NORMSDIST(-C160+$C$8*SQRT($C$60))-B160*EXP(($C$59-$C$7)*$C$60)*NORMSDIST(-C160)) -> 47.76947679 | E160: 0.9612414511 | F160: 0.001692762691 | G160: -1.478545724 | H160: 121.7155233 | I160: 45.47094396 | J160: 47
B161: 98 | C161: =(LN(B161/$C$5)+($C$59+0.5*$C$8^2)*$C$60)/($C$8*SQRT($C$60)) -> 1.919861183 | D161: =IF($C$56=1,B161*EXP(($C$59-$C$7)*$C$60)*NORMSDIST(C161)-$C$5*EXP(-$C$7*$C$60)*NORMSDIST(C161-$C$8*SQRT($C$60)),$C$5*EXP(-$C$7*$C$60)*NORMSDIST(-C161+$C$8*SQRT($C$60))-B161*EXP(($C$59-$C$7)*$C$60)*NORMSDIST(-C161)) -> 48.73154818 | E161: 0.9628851255 | F161: 0.001595530875 | G161: -1.423030712 | H161: 117.1018584 | I161: 45.63119412 | J161: 48
B162: 99 | C162: =(LN(B162/$C$5)+($C$59+0.5*$C$8^2)*$C$60)/($C$8*SQRT($C$60)) -> 1.945242112 | D162: =IF($C$56=1,B162*EXP(($C$59-$C$7)*$C$60)*NORMSDIST(C162)-$C$5*EXP(-$C$7*$C$60)*NORMSDIST(C162-$C$8*SQRT($C$60)),$C$5*EXP(-$C$7*$C$60)*NORMSDIST(-C162+$C$8*SQRT($C$60))-B162*EXP(($C$59-$C$7)*$C$60)*NORMSDIST(-C162)) -> 49.69521556 | E162: 0.9644343508 | F162: 0.001503813463 | G162: -1.368914682 | H162: 112.6343304 | I162: 45.78378517 | J162: 49
B163: 100 | C163: =(LN(B163/$C$5)+($C$59+0.5*$C$8^2)*$C$60)/($C$8*SQRT($C$60)) -> 1.970367951 | D163: =IF($C$56=1,B163*EXP(($C$59-$C$7)*$C$60)*NORMSDIST(C163)-$C$5*EXP(-$C$7*$C$60)*NORMSDIST(C163-$C$8*SQRT($C$60)),$C$5*EXP(-$C$7*$C$60)*NORMSDIST(-C163+$C$8*SQRT($C$60))-B163*EXP(($C$59-$C$7)*$C$60)*NORMSDIST(-C163)) -> 50.66038719 | E163: 0.9658944911 | F163: 0.00141731234 | G163: -1.316181929 | H163: 108.3108569 | I163: 45.92906191 | J163: 50
